bitfinex-derivatives/quotes_SOLF0:USTF0_20241010
["timestamp","ask_amount","ask_price","bid_price","bid_amount"]
[1728589842857,0.5,137.9,137.89,2.17635]
[1728589844258,0.5,137.9,137.89,5.80585]
[1728589848367,0.5,137.9,137.89,16.95585]
[1728589848868,0.62502,137.93,137.92,3.6287]
[1728589849068,0.62502,137.93,137.92,16.95505]
[1728589851060,0.62502,137.93,137.92,5.80505]
[1728589859272,0.62502,137.93,137.92,16.95505]
[1728589867986,0.5,137.96,137.95,14.7779]
[1728589868479,0.5,137.96,137.95,16.95425]
[1728589868880,0.5,137.96,137.95,5.80425]
[1728589871583,0.5,137.96,137.95,16.95425]
[1728589873678,0.62502,137.99,137.98,3.6271]
[1728589874484,0.62502,137.99,137.98,5.80345]
[1728589877292,0.62502,137.99,137.98,16.95345]
[1728589879884,0.62502,137.99,137.98,5.80345]
[1728589880693,0.62502,137.99,137.98,2.17635]
[1728589880894,11.77502,137.99,137.92,1.4367]
[1728589881096,11.77502,137.99,137.93,3.6282]
[1728589881097,0.62502,137.99,137.93,3.6282]
[1728589881394,11.15,137.97,137.93,2.17422]
[1728589882185,11.15,137.98,137.94,11.15]
[1728589882793,4.25202,137.99,137.96,3.6274]
[1728589883097,14.7773,137.98,137.96,2.17422]
[1728589883692,11.15,137.98,137.96,2.17422]
[1728589883891,3.6274,137.97,137.96,2.17422]
[1728589884890,14.7772,137.98,137.96,2.17422]
[1728589885592,14.7774,137.97,137.96,2.17422]
[1728589886088,14.7774,137.97,137.96,57.17422]
[1728589886495,5.58,137.98,137.96,57.17422]
[1728589886691,20.3572,137.98,137.96,57.17422]
[1728589887798,20.3572,137.98,137.96,60.80182]
[1728589887992,14.7772,137.98,137.96,60.80182]
[1728589888200,20.3572,137.98,137.96,60.80182]
[1728589890493,16.73,137.98,137.96,57.17422]
[1728589890696,3.6274,137.97,137.96,57.17422]
[1728589891203,14.7774,137.97,137.96,57.17422]
[1728589892294,3.6274,137.97,137.96,57.17422]
[1728589892802,3.6274,137.97,137.96,2.17422]
[1728589896105,14.7774,137.97,137.96,2.17422]
[1728589896908,3.6274,137.97,137.96,2.17422]
[1728589897109,14.7774,137.97,137.96,2.17422]
[1728589898205,3.6274,137.97,137.96,2.17422]
[1728589901502,18.47798721,137.97,137.96,2.17422]
[1728589904210,1.45388,137.95,137.91,11.15]
[1728589904614,1.45388,137.95,137.93,3.6283]
[1728589905517,1.45388,137.95,137.93,5.803]
[1728589905906,3.6282,137.94,137.93,2.1747]
[1728589906109,14.7782,137.94,137.93,2.1747]
[1728589906316,20.3582,137.94,137.93,2.1747]
[1728589907510,3.6292,137.91,137.87,0.12502]
[1728589907716,20.3592,137.91,137.88,3.6295]
[1728589908530,9.2092,137.91,137.89,3.6294]
[1728589910721,5.58,137.91,137.89,3.6294]
[1728589910934,5.58,137.91,137.9,3.6292]
[1728589913718,5.58,137.91,137.9,5.80421]
[1728589915513,5.58,137.91,137.9,2.17501]
[1728589915720,20.3589,137.91,137.9,2.17501]
[1728589916224,3.6292,137.9,137.89,2.17501]
[1728589916422,3.6292,137.9,137.87,0.12502]
[1728589916423,11.15,137.9,137.87,2.30003]
[1728589916727,11.15,137.88,137.87,2.30003]
[1728589916924,20.3597,137.88,137.87,2.30003]
[1728589919930,9.2097,137.88,137.87,2.30003]
[1728589920332,5.58,137.88,137.87,2.30003]
[1728589920632,5.58,137.91,137.87,13.45003]
[1728589920824,5.58,137.91,137.9,11.15]
[1728589921325,5.58,137.91,137.9,13.32501]
[1728589921534,5.58,137.91,137.9,16.95421]
[1728589922931,5.58,137.91,137.9,5.80421]
[1728589923231,5.58,137.91,137.9,2.17501]
[1728589923830,9.2089,137.91,137.9,2.17501]
[1728589924530,20.3589,137.91,137.9,2.17501]
[1728589924736,16.73,137.91,137.87,0.12502]
[1728589925037,16.73,137.91,137.87,2.30098]
[1728589925038,14.7797,137.88,137.87,2.30098]
[1728589925241,20.3597,137.88,137.87,0.12502]
[1728589925533,3.6303,137.86,137.85,2.17596]
[1728589925724,11.15,137.86,137.85,2.17596]
[1728589926432,14.7803,137.86,137.85,2.17596]
[1728589928630,14.7803,137.86,137.81,0.12502]
[1728589928631,11.15,137.86,137.81,0.12502]
[1728589928936,3.6313,137.82,137.81,2.30177]
[1728589929126,5.58,137.82,137.81,2.30177]
[1728589930830,9.2113,137.82,137.81,2.30177]
[1728589933836,20.3613,137.82,137.81,2.30177]
[1728589934040,20.3613,137.82,137.81,0.12502]
[1728589936546,3.6313,137.82,137.81,0.12502]
[1728589936744,5.58,137.82,137.81,0.12502]
[1728589937039,5.58,137.82,137.81,2.30177]
[1728589939049,5.58,137.82,137.81,5.93337]
[1728589941239,5.58,137.82,137.81,2.30177]
[1728589943139,9.2113,137.82,137.81,2.30177]
[1728589943339,5.58,137.82,137.81,5.93337]
[1728589945446,14.69040596,137.84,137.81,2.30177]
[1728589945649,7.17130596,137.84,137.82,3.6313]
[1728589945846,5.58,137.83,137.82,3.6313]
[1728589946456,5.58,137.83,137.82,5.80805]
[1728589948654,9.2108,137.84,137.82,5.80805]
[1728589949847,5.58,137.84,137.82,2.17675]
[1728589950054,3.6311,137.83,137.82,2.17675]
[1728589952955,9.2109,137.84,137.82,2.17675]
[1728589957554,11.15,137.83,137.81,0.12502]
[1728589957752,3.6313,137.82,137.81,0.12502]
[1728589959366,5.58,137.82,137.81,2.30208]
[1728589959862,9.2113,137.82,137.81,2.30208]
[1728589963264,3.6313,137.82,137.81,2.30208]
[1728589963566,9.2113,137.82,137.81,2.30208]
[1728589969660,20.3613,137.82,137.81,2.30208]
[1728589974860,3.63441914,137.86,137.81,2.30208]
[1728589974861,3.6309,137.84,137.82,3.6313]
[1728589975066,5.58,137.83,137.81,2.30208]
[1728589975365,16.73,137.83,137.81,2.30208]
[1728589975563,3.6313,137.82,137.81,2.30208]
[1728589977365,20.3611,137.83,137.81,5.93368]
[1728589978561,3.6313,137.82,137.81,2.30208]
[1728589980355,3.6313,137.82,137.81,5.93368]
[1728589981053,16.73,137.83,137.81,5.93368]
[1728589981257,20.3612,137.83,137.81,5.93368]
[1728589981565,9.2112,137.83,137.82,3.6313]
[1728589981768,3.63441914,137.86,137.82,2.17706]
[1728589981972,5.58,137.85,137.82,13.32706]
[1728589982172,5.58,137.85,137.84,3.6308]
[1728589982357,89.53,137.89,137.84,13.32706]
[1728589982561,5.58,137.88,137.85,14.7804]
[1728589982769,3.70960651,137.88,137.85,11.15]
[1728589982967,5.58,137.87,137.85,13.32706]
[1728589983263,5.58,137.87,137.85,16.95736]
[1728589984666,5.58,137.87,137.85,5.80736]
[1728589985367,5.58,137.87,137.86,3.6303]
[1728589985568,3.6298,137.88,137.86,3.6303]
[1728589985874,5.58,137.87,137.86,3.6303]
[1728589986073,5.58,137.87,137.86,5.80736]
[1728589987374,5.58,137.87,137.86,2.17706]
[1728589988385,9.21,137.87,137.86,2.17706]
[1728589989377,9.21,137.87,137.86,13.32706]
[1728589989568,5.58,137.87,137.86,13.32706]
[1728589989764,5.58,137.87,137.86,16.95736]
[1728589992068,3.6294,137.9,137.86,13.32706]
[1728589992277,5.58,137.89,137.88,3.6297]
[1728589992765,5.58,137.89,137.88,5.80676]
[1728589994677,5.58,137.89,137.88,2.17706]
[1728589995470,9.2095,137.89,137.88,2.17706]
[1728590006601,3.6288,137.92,137.9,3.6292]
[1728590006904,3.6288,137.92,137.88,13.32706]
[1728590006905,1.9508,137.9,137.89,11.15]
[1728590007207,1.9508,137.9,137.89,13.32706]
[1728590007403,1.9508,137.9,137.89,16.95656]
[1728590008091,1.9508,137.9,137.89,5.80656]
[1728590012498,5.58,137.9,137.89,2.17706]
[1728590013408,9.17439828,137.9,137.89,2.17706]
[1728590019904,5.54519828,137.9,137.89,5.80656]
[1728590020695,5.54519828,137.9,137.89,2.17706]
[1728590020899,9.17439828,137.9,137.89,2.17706]
[1728590023704,1.9508,137.9,137.89,5.80656]
[1728590024616,9.1888,137.92,137.9,3.6291]
[1728590024912,9.1888,137.92,137.9,5.80616]
[1728590026605,3.6288,137.92,137.9,5.80616]
[1728590026803,5.56,137.92,137.91,3.6289]
[1728590027414,5.56,137.92,137.91,5.80596]
[1728590027913,3.75352,137.93,137.92,3.6287]
[1728590027914,0.12502,137.93,137.92,3.6287]
[1728590028515,0.12502,137.93,137.92,16.95576]
[1728590028710,5.56,137.95,137.94,3.628]
[1728590029014,78.36310633,137.96,137.94,3.628]
[1728590029015,81.99090633,137.96,137.94,3.628]
[1728590029321,5.56,137.95,137.94,5.80506]
[1728590031812,9.81202,137.99,137.96,3.6275]
[1728590032016,6.18502,137.99,137.97,11.15]
[1728590032214,6.18502,137.99,137.97,14.7772]
[1728590032411,6.18502,137.99,137.97,16.95426]
[1728590033016,9.81192,137.99,137.97,2.17706]
[1728590034536,9.81192,137.99,137.97,5.80436]
[1728590035216,3.6271,137.98,137.97,2.17706]
[1728590037425,9.81202,137.99,137.97,2.17706]
[1728590039726,6.18502,137.99,137.97,2.17706]
[1728590039911,3.6271,137.98,137.97,2.17706]
[1728590040318,6.18502,137.99,137.97,2.17706]
[1728590041326,9.81202,137.99,137.97,2.17706]
[1728590045430,9.81202,137.99,137.97,5.80446]
[1728590045633,5.56,137.98,137.97,5.80446]
[1728590054248,0.62502,137.99,137.98,3.6271]
[1728590054437,0.62502,137.99,137.98,14.7771]
[1728590055031,0.62502,137.99,137.98,16.95416]
[1728590069642,0.62502,137.99,137.98,2.17706]
[1728590069851,0.62502,137.99,137.98,5.80416]
[1728590070656,0.62502,137.99,137.98,16.95416]
[1728590072357,0.62502,137.99,137.98,5.80416]
[1728590074357,0.62502,137.99,137.98,16.95416]
[1728590075955,0.62502,137.99,137.98,2.17706]
[1728590076162,4.25182,137.99,137.98,2.17706]
[1728590076350,0.62502,137.99,137.98,2.17706]
[1728590077151,0.62502,137.99,137.98,5.80416]
[1728590077663,0.62502,137.99,137.98,16.95416]
[1728590080356,4.25182,137.99,137.98,2.17706]
[1728590080657,0.62502,137.99,137.98,2.17706]
[1728590081056,0.62502,137.99,137.98,5.80416]
[1728590084261,6.18502,137.99,137.98,5.80416]
[1728590084851,6.18502,137.99,137.98,2.17706]
[1728590085059,9.81182,137.99,137.98,2.17706]
[1728590093563,0.62502,137.99,137.98,5.80416]
[1728590093769,0.62502,137.99,137.98,16.95416]
[1728590097267,0.62502,137.99,137.98,5.80416]
[1728590097472,0.62502,137.99,137.98,16.95416]
[1728590098769,0.62502,137.99,137.98,5.80416]
[1728590100268,0.62502,137.99,137.98,2.17706]
[1728590100471,9.79182,137.99,137.98,2.17706]
[1728590101173,6.16502,137.99,137.98,2.17706]
[1728590101774,6.16502,137.99,137.98,5.80416]
[1728590102773,0.62502,137.99,137.98,16.95416]
[1728590103477,0.62502,137.99,137.98,5.80416]
[1728590103775,0.62502,137.99,137.98,2.17706]
[1728590105174,0.62502,137.99,137.98,16.95416]
[1728590110480,0.62502,137.99,137.98,2.17706]
[1728590111580,4.25182,137.99,137.98,2.17706]
[1728590113680,4.25182,137.99,137.96,3.6274]
[1728590113681,4.25182,137.99,137.97,2.17706]
[1728590114900,4.25182,137.99,137.97,5.80436]
[1728590115606,4.25182,137.99,137.97,16.95436]
[1728590115993,0.62502,137.99,137.97,16.95436]
[1728590116194,0.62502,137.99,137.98,11.15]
[1728590116403,0.62502,137.99,137.98,16.95416]
[1728590126511,0.5,138.02,138.01,3.6263]
[1728590126709,9.20070879,138.06,138.01,11.15]
[1728590126911,9.20070879,138.06,138.03,11.15]
[1728590127115,9.20070879,138.06,138.03,13.32706]
[1728590128421,12.82570879,138.06,138.03,16.95266]
[1728590128811,9.20070879,138.06,138.04,11.15]
[1728590129210,9.20070879,138.06,138.04,13.32706]
[1728590130310,9.20070879,138.06,138.04,2.17706]
[1728590131822,12.82570879,138.06,138.04,2.17706]
[1728590132616,4.25032,138.05,138.04,2.17706]
[1728590138324,3.6257,138.04,138.02,2.17706]
[1728590138528,5.54,138.03,138.02,11.15]
[1728590138723,0.62502,138.05,138.02,11.15]
[1728590138928,5.54,138.04,138.02,2.17336]
[1728590139231,5.54,138.04,138.03,11.15]
[1728590139433,5.54,138.04,138.03,13.32336]
[1728590140317,5.54,138.04,138.03,16.94906]
[1728590145017,9.1655,138.04,138.03,2.17336]
[1728590145218,9.1655,138.04,138.0,11.15]
[1728590145617,9.1655,138.04,138.0,13.32336]
[1728590146430,9.1655,138.04,138.01,3.6263]
[1728590146625,5.54,138.04,138.0,13.32336]
[1728590146818,3.6258,138.03,138.0,13.32336]
[1728590147219,3.6258,138.03,138.0,16.94976]
[1728590147625,3.6258,138.03,138.01,11.15]
[1728590147830,3.6258,138.03,138.01,14.7763]
[1728590148132,9.1657,138.04,138.01,16.94966]
[1728590149127,3.6259,138.03,138.01,2.17336]
[1728590150924,5.54,138.04,138.02,11.15]
[1728590151136,5.54,138.04,138.03,11.15]
[1728590151629,5.54,138.04,138.03,14.7756]
[1728590151827,5.54,138.04,138.03,5.79896]
[1728590152023,5.54,138.04,138.03,2.17336]
[1728590158036,5.54,138.04,138.03,5.79916]
[1728590161736,9.79032,138.05,138.03,5.79916]
[1728590162833,6.16502,138.05,138.03,5.79916]
[1728590165243,9.79032,138.05,138.03,5.79916]
[1728590165637,6.16502,138.05,138.03,5.79916]
[1728590166739,6.16502,138.05,138.03,2.17336]
[1728590167038,9.79052,138.05,138.03,2.17336]
[1728590167737,3.6255,138.04,138.03,2.17336]
[1728590167933,6.16502,138.05,138.03,2.17336]
[1728590168433,9.79042,138.05,138.03,2.17336]
[1728590170839,6.16502,138.05,138.03,2.17336]
[1728590171044,3.6255,138.04,138.03,2.17336]
[1728590171544,6.16502,138.05,138.03,2.17336]
[1728590171742,9.79042,138.05,138.03,2.17336]
[1728590172141,0.62502,138.05,138.04,11.15]
[1728590172445,0.62502,138.05,138.04,14.7755]
[1728590173443,0.62502,138.05,138.04,16.94886]
[1728590173744,0.62502,138.05,138.04,5.79886]
[1728590174639,0.62502,138.05,138.04,16.94886]
[1728590176142,5.54,138.06,138.05,69.15028]
[1728590176852,5.54,138.06,138.05,71.32364]
[1728590179053,5.54,138.06,138.05,60.17364]
[1728590183051,5.54,138.06,138.05,56.54834]
[1728590184562,5.54,138.06,138.05,71.32364]
[1728590188759,5.54,138.07,138.06,3.6249]
[1728590189458,5.54,138.07,138.06,5.79826]
[1728590191862,6.04,138.08,138.06,13.32336]
[1728590192065,6.04,138.08,138.07,14.7747]
[1728590192454,6.04,138.08,138.07,3.6247]
[1728590192659,6.04,138.08,138.07,5.79806]
[1728590193363,9.6645,138.08,138.07,2.17336]
[1728590193673,9.59542824,138.08,138.07,2.17336]
[1728590193852,13.21992824,138.08,138.07,2.17336]
[1728590196361,9.59542824,138.08,138.07,5.79806]
[1728590197569,9.59542824,138.08,138.07,2.17336]
[1728590197767,13.21992824,138.08,138.07,2.17336]
[1728590198262,20.74542824,138.08,138.05,56.54834]
[1728590198459,11.15,138.06,138.05,54.37498]
[1728590198661,11.15,138.06,138.05,56.5481]
[1728590198854,14.775,138.06,138.05,56.5481]
[1728590199060,14.775,138.06,138.05,54.37498]
[1728590202566,14.775,138.06,138.05,53.95911]
[1728590203772,3.6255,138.04,138.03,2.17312]
[1728590203970,16.69,138.04,138.03,2.17312]
[1728590204876,20.3155,138.04,138.03,2.17312]
[1728590215174,9.1655,138.04,138.03,2.17312]
[1728590215483,20.3155,138.04,138.03,2.17312]
[1728590220186,3.6255,138.04,138.03,2.17312]
[1728590220390,81.93631405,138.07,138.04,3.6253]
[1728590220685,81.93631405,138.07,138.04,2.17312]
[1728590220686,5.52,138.06,138.04,2.17312]
[1728590221473,5.52,138.06,138.04,5.79852]
[1728590221672,9.145,138.06,138.04,5.79852]
[1728590225595,5.52,138.06,138.04,5.79852]
[1728590226186,5.52,138.06,138.05,3.6253]
[1728590226490,5.52,138.06,138.05,5.79842]
[1728590228588,5.52,138.06,138.05,2.17312]
[1728590230792,5.52,138.06,138.05,5.79842]
[1728590232103,5.52,138.06,138.05,2.17312]
[1728590232804,5.52,138.06,138.05,5.79842]
[1728590234099,5.52,138.06,138.05,2.17312]
[1728590236502,5.52,138.06,138.05,5.79842]
[1728590237110,7.68002824,138.08,138.05,13.32312]
[1728590237308,5.52,138.07,138.06,3.6249]
[1728590237510,1.1952,138.07,138.06,14.7749]
[1728590237803,6.02,138.08,138.07,3.6247]
[1728590238193,0.5,138.08,138.07,3.6247]
[1728590238393,0.5,138.08,138.07,5.79782]
[1728590241297,5.52,138.09,138.08,3.6244]
[1728590241696,5.52,138.09,138.08,5.79752]
[1728590243007,9.144,138.1,138.08,5.79752]
[1728590243399,3.6242,138.09,138.08,2.17312]
[1728590248718,9.144,138.1,138.08,5.79762]
[1728590249507,3.6242,138.09,138.08,2.17312]
[1728590251317,3.6245,138.08,138.03,13.9023]
[1728590251619,3.6245,138.08,138.03,14.66522]
[1728590251620,5.52,138.07,138.03,14.66522]
[1728590251821,3.6254,138.05,138.03,14.66522]
[1728590252018,7.2256241,138.05,138.03,14.66522]
[1728590252611,3.6002241,138.05,138.03,14.66522]
[1728590252811,3.6252,138.06,138.03,18.29082]
[1728590253113,3.67415302,138.05,138.03,18.29082]
[1728590254420,3.67415302,138.05,138.04,3.6255]
[1728590254611,9.1449,138.07,138.04,3.6255]
[1728590255014,3.625,138.06,138.04,3.6255]
[1728590255217,3.625,138.06,138.04,5.79862]
[1728590256420,3.64840639,138.07,138.04,2.17312]
[1728590256623,5.52,138.07,138.06,3.625]
[1728590256822,9.09878169,138.07,138.06,3.625]
[1728590257212,9.09878169,138.07,138.06,5.79812]
[1728590258629,0.62502,138.11,138.06,13.32312]
[1728590258827,5.52,138.09,138.08,3.6243]
[1728590259718,5.52,138.09,138.08,5.79742]
[1728590260725,4.24882,138.11,138.08,2.17312]
[1728590260920,5.52,138.1,138.09,3.6241]
[1728590261618,5.52,138.1,138.09,5.79722]
[1728590265426,0.62502,138.11,138.1,3.624]
[1728590265617,0.62502,138.11,138.1,14.774]
[1728590265816,0.62502,138.11,138.1,16.94712]
[1728590266218,0.5,138.14,138.13,3.6232]
[1728590266427,0.5,138.14,138.13,14.7732]
[1728590267017,0.5,138.14,138.13,16.94632]
[1728590268123,3.66665618,138.16,138.15,3.6224]
[1728590268324,3.66665618,138.16,138.15,14.7724]
[1728590268626,3.66665618,138.16,138.15,16.94552]
[1728590268824,3.66665618,138.16,138.15,5.79552]
[1728590270928,3.66665618,138.16,138.15,2.17312]
[1728590270929,7.28905618,138.16,138.15,2.17312]
[1728590271231,3.66665618,138.16,138.15,2.17312]
[1728590272536,7.28905618,138.16,138.15,2.17312]
[1728590273333,3.6227,138.15,138.14,2.17312]
[1728590274234,3.66665618,138.16,138.14,5.79592]
[1728590279635,7.28905618,138.16,138.14,5.79592]
[1728590279838,3.66665618,138.16,138.14,5.79592]
[1728590280036,11.15,138.16,138.14,2.17312]
[1728590280226,11.15,138.16,138.13,2.17312]
[1728590280428,11.15,138.15,138.11,5.79662]
[1728590280636,5.52,138.14,138.11,5.79662]
[1728590280847,3.6232,138.13,138.11,5.79662]
[1728590281436,7.25499616,138.13,138.11,5.79662]
[1728590282239,3.6234,138.12,138.11,2.17312]
[1728590284349,3.63179616,138.13,138.11,2.17312]
[1728590284350,7.25509616,138.13,138.11,2.17312]
[1728590284551,3.6233,138.13,138.11,2.17312]
[1728590284749,7.27756611,138.13,138.11,2.17312]
[1728590284945,9.1429,138.14,138.12,3.6232]
[1728590285443,12.76491086,138.14,138.12,3.6232]
[1728590285648,12.76491086,138.14,138.12,5.79632]
[1728590286748,9.14201086,138.14,138.12,5.79632]
[1728590286949,3.62201086,138.14,138.12,2.17312]
[1728590287146,5.52,138.15,138.12,13.32312]
[1728590287341,9.14708472,138.15,138.13,11.15]
[1728590287548,9.14708472,138.15,138.13,13.32312]
[1728590287846,9.14708472,138.15,138.14,3.6229]
[1728590288051,9.14708472,138.15,138.14,5.79602]
[1728590288256,5.52,138.15,138.14,5.79602]
[1728590289847,5.52,138.15,138.14,16.94602]
[1728590290043,0.62502,138.17,138.16,3.6224]
[1728590290243,0.62502,138.17,138.16,14.7724]
[1728590290640,0.62502,138.17,138.16,16.94552]
[1728590302658,0.62502,138.17,138.16,5.79552]
[1728590304358,0.62502,138.17,138.16,2.17312]
[1728590304554,6.14502,138.17,138.16,2.17312]
[1728590304760,9.76712,138.17,138.16,2.17312]
[1728590305360,6.14502,138.17,138.16,2.17312]
[1728590305660,6.14502,138.17,138.16,16.94552]
[1728590305960,0.62502,138.17,138.16,16.94552]
[1728590314058,0.62502,138.17,138.16,5.79552]
[1728590316257,0.62502,138.17,138.16,16.94552]
[1728590336977,0.62502,138.17,138.16,5.79552]
[1728590338785,0.62502,138.17,138.16,16.94552]
[1728590340173,0.62502,138.17,138.16,5.79552]
[1728590340371,0.62502,138.17,138.16,16.94552]
[1728590344271,0.62502,138.17,138.16,5.79552]
[1728590344579,0.62502,138.17,138.16,16.94552]
[1728590345676,6.12502,138.17,138.16,2.17312]
[1728590345868,17.27502,138.17,138.15,2.17312]
[1728590346073,17.27502,138.17,138.13,11.15]
[1728590346382,3.63173206,138.16,138.13,13.32147]
[1728590346881,3.63173206,138.16,138.14,3.6227]
[1728590347082,9.74722,138.17,138.13,2.17147]
[1728590347083,6.12502,138.17,138.13,2.17147]
[1728590347273,14.7726,138.16,138.13,2.17147]
[1728590347578,3.56796025,138.15,138.13,2.17147]
[1728590348478,14.7727,138.15,138.13,2.17147]
[1728590348682,16.65,138.14,138.13,2.17147]
[1728590348879,16.65,138.14,138.07,13.9749]
[1728590349073,5.5,138.14,138.08,11.15]
[1728590349380,5.5,138.14,138.1,11.15]
[1728590349381,9.123,138.14,138.1,11.15]
[1728590349886,12.79446473,138.14,138.11,3.6235]
[1728590350186,9.17146473,138.14,138.1,13.32178]
[1728590350484,9.17146473,138.14,138.13,3.6232]
[1728590350877,9.17146473,138.14,138.13,5.79498]
[1728590351077,9.17146473,138.14,138.13,2.17178]
[1728590351294,12.79436473,138.14,138.13,2.17178]
[1728590353076,23.94436473,138.14,138.13,2.17178]
[1728590353276,12.79436473,138.14,138.13,2.17178]
[1728590354079,9.17146473,138.14,138.13,2.17178]
[1728590354984,9.17146473,138.14,138.13,5.79498]
[1728590355185,9.17146473,138.14,138.13,2.17178]
[1728590356185,12.79436473,138.14,138.13,2.17178]
[1728590356984,9.17146473,138.14,138.13,2.17178]
[1728590357378,20.32146473,138.14,138.05,0.12502]
[1728590357574,11.15,138.11,138.08,3.6243]
[1728590357779,11.15,138.11,138.08,5.79703]
[1728590357780,5.5,138.1,138.08,5.79703]
[1728590358177,20.2741,138.1,138.08,5.79713]
[1728590358488,16.65,138.1,138.08,2.17273]
[1728590359583,11.15,138.09,138.08,2.17273]
[1728590360087,14.7742,138.09,138.08,2.17273]
[1728590364597,3.6242,138.09,138.08,2.17273]
[1728590364789,14.7742,138.09,138.08,2.17273]
[1728590365188,11.15,138.09,138.05,0.12502]
[1728590365483,5.5,138.1,138.05,0.12502]
[1728590365484,14.775,138.06,138.05,0.12502]
[1728590365788,20.275,138.06,138.05,2.29806]
[1728590366185,23.94199362,138.06,138.05,2.29806]
[1728590367390,23.94199362,138.06,138.05,0.60286]
[1728590367691,3.6259,138.03,138.0,5.0103]
[1728590367890,5.52,138.02,138.0,5.80007]
[1728590368797,5.52,138.02,138.01,3.6263]
[1728590368991,5.52,138.02,138.01,5.79997]
[1728590369296,16.67,138.02,138.01,2.17367]
[1728590369497,9.1461,138.02,138.01,2.17367]
[1728590369697,20.2961,138.02,138.01,2.17367]
[1728590370394,5.52,138.02,138.01,2.17367]
[1728590371782,20.2961,138.02,138.01,2.17367]
[1728590372997,5.52,138.02,138.01,2.17367]
[1728590373392,5.52,138.02,138.01,5.79997]
[1728590374196,11.15,138.04,138.03,3.6258]
[1728590374397,16.67,138.04,138.03,3.6258]
[1728590374792,16.67,138.04,138.03,5.79947]
[1728590374989,5.52,138.04,138.03,5.79947]
[1728590375408,16.67,138.04,138.03,2.17367]
[1728590375998,16.67,138.04,138.03,5.79947]
[1728590376701,0.12502,138.11,138.1,3.624]
[1728590376999,0.12502,138.11,138.1,14.774]
[1728590377500,0.12502,138.11,138.1,16.94767]
[1728590378003,0.12502,138.11,138.1,2.17367]
[1728590379699,3.74872,138.11,138.09,2.17367]
[1728590379901,0.12502,138.11,138.09,2.17367]
[1728590380306,0.12502,138.11,138.1,3.624]
[1728590381106,0.12502,138.11,138.1,5.79767]
[1728590388615,0.12502,138.11,138.1,2.17367]
[1728590389613,0.12502,138.11,138.1,5.79767]
[1728590393606,0.12502,138.11,138.1,23.18767]
[1728590394319,0.12502,138.11,138.1,5.79767]
[1728590395222,5.5,138.15,138.14,3.6229]
[1728590395412,5.5,138.15,138.14,2.17367]
[1728590396823,5.5,138.15,138.14,5.79657]
[1728590397320,5.5,138.16,138.15,3.6225]
[1728590397517,5.5,138.16,138.14,2.17367]
[1728590397924,5.5,138.16,138.14,5.79647]
[1728590398517,5.5,138.16,138.14,2.17367]
[1728590399117,9.1225,138.16,138.14,2.17367]
[1728590399519,3.6226,138.15,138.14,2.17367]
[1728590401534,9.1226,138.16,138.14,5.79657]
[1728590401728,5.5,138.16,138.14,2.17367]
[1728590402027,3.6239,138.11,138.08,3.6243]
[1728590402233,3.54891557,138.1,138.05,0.12502]
[1728590402730,7.17301557,138.1,138.07,3.6246]
[1728590403425,3.54891557,138.1,138.07,3.6246]
[1728590403626,3.6243,138.09,138.07,2.17226]
[1728590403841,5.7,138.08,138.07,2.17226]
[1728590404041,5.7,138.08,138.07,2.10007]